[Event "Marmaris Karya-19 GM-May 2022"]
[Site "Icmeler-Marmaris"]
[Date "2022.05.15"]
[Round "2.1"]
[White "Benidze, Davit"]
[Black "Caglar, Sila"]
[Result "1/2-1/2"]
[ECO "C00"]
[WhiteElo "2425"]
[BlackElo "2133"]
[Annotator "TA"]
[PlyCount "109"]
[EventDate "2022.05.15"]
[EventType "schev"]
[EventCountry "TUR"]
[SourceTitle "playchess.com"]
[Source "ChessBase"]
[SourceQuality "1"]
[TimeControl "5400+30"]

{[%evp 21,109,13,16,14,0,0,0,5,3,-7,-12,-4,-11,-27,-12,-37,-11,-35,23,14,28,22,69,67,95,70,73,69,73,63,64,22,44,24,23,-4,25,12,23,14,7,0,3,0,7,0,30,0,0,0,31,0,54,-39,24,2,14,14,39,33,79,75,85,75,79,70,70,71,74,-11,116,96,140,121,118,130,163,178,175,-297,-269,-269,12,0,0,0,0,0,0,-10]} 1. Nf3 {[%emt 0:10:00]} d5 {[%emt 0:01:00]} 2. g3 {[%emt 0:00:30]} Nf6 {[%emt 0:00:00]} 3. Bg2 {[%emt 0:00:00]} e6 {[%emt 0:00:00]} 4. O-O {[%emt 0:00:00]} Be7 {[%emt 0:00:30]} 5. d3 {[%emt 0:00:00]} O-O {[%emt 0:00:00]} 6. Nbd2 {[%emt 0:00:00]} c5 {[%emt 0:01:00]} 7. e4 {[%emt 0:00:30]} Nc6 {[%emt 0:02:30]} 8. Re1 {[%emt 0:00:30]} dxe4 {[%emt 0:02:30]} 9. dxe4 {[%emt 0:00:00]} e5 {[%emt 0:00:30]} 10. c3 {[%emt 0:00:00]} h6 {[%emt 0:00:30]} 11. Qe2 {[%emt 0:02:30]} Qc7 {[%emt 0:01:30]} 12. Nc4 {[%emt 0:00:30] C00: French: Unusual White 2nd moves.} Be6 {[%emt 0:00:30]} 13. Nh4 {[%emt 0:02:30]} Rfd8 {[%emt 0:02:30]} 14. Ne3 {[%emt 0:08:30]} Bf8 {[%emt 0:00:30]} 15. Qf3 {[%emt 0:00:30] [#]} Rd7 $146 {[%emt 0:03:30]} ({Predecessor:} 15... Ne7 16. Nhf5 Nxf5 17. exf5 e4 18. Qe2 Bd7 19. Ng4 Bxf5 20. Nxf6+ gxf6 21. Bxe4 Re8 {1-0 (44) Perdomo,L (2389)-Reis,A (1999) Sao Paulo 2009}) 16. Nhf5 {[%emt 0:13:30][%cal Of5h6]} Qd8 {[%emt 0:00:30]} 17. Bf1 {[%emt 0:13:30]} g6 {[%emt 0:06:30]} 18. Nh4 {[%emt 0:01:30]} (18. g4 $5) 18... Nh7 {[%emt 0:02:30]} 19. Bc4 {[%emt 0:04:30]} Ng5 {[%emt 0:00:30]} (19... Bxc4 $15 20. Nxc4 b6) 20. Qe2 $11 {[%emt 0:00:30]} Kh7 {[%emt 0:08:30]} 21. Bxe6 {[%emt 0:10:30]} fxe6 {[%emt 0:00:30]} (21... Nxe6 $11 22. Nf3 Bg7) 22. Kg2 $14 {[%emt 0:03:30]} Bg7 {[%emt 0:04:30]} 23. Nf1 {[%emt 0:00:30]} Nf7 {[%emt 0:01:30]} 24. Be3 {[%emt 0:00:30]} (24. Qg4 Qf6 $11) 24... b6 {[%emt 0:00:30]} 25. Rad1 {[%emt 0:00:00]} (25. Qg4 Qf6 $11) 25... Ne7 {[%emt 0:00:30]} 26. Qf3 {[%emt 0:04:00][%cal Of3f7] White is more active.} Rxd1 {[%emt 0:04:30]} 27. Rxd1 {[%emt 0:00:00]} Qe8 {[%emt 0:00:30] Hoping for ...g5.} 28. Qg4 {[%emt 0:01:00]} Qc6 {[%emt 0:00:00]} (28... g5 $5 {[%cal Re7g8]} 29. Nf3 Ng8 $11) 29. Bc1 {[%emt 0:03:30]} Rf8 {[%emt 0:02:00]} 30. Kg1 {[%emt 0:02:30]} g5 {[%emt 0:01:30]} 31. Ng2 {[%emt 0:00:30]} Ng8 {[%emt 0:00:00]} 32. Qe2 {[%emt 0:01:42]} Nf6 {[%emt 0:00:00]} 33. Re1 {[%emt 0:00:05]} Nd6 {[%emt 0:02:30][%cal Rc6e4]} 34. Nd2 {[%emt 0:00:30]} g4 {[%emt 0:02:30]} 35. Nh4 {[%emt 0:06:16]} h5 {[%emt 0:00:30]} 36. h3 {[%emt 0:05:07]} gxh3 {[%emt 0:04:30]} (36... c4 $11) 37. f3 {[%emt 0:00:05]} (37. Nhf3 $1 $14) 37... Nf7 {[%emt 0:01:30]} ({Better is} 37... Qa4 $15) 38. Kh2 {[%emt 0:02:27]} Bh6 {[%emt 0:02:30]} 39. Kxh3 {[%emt 0:00:17]} Bg5 {[%emt 0:03:30]} 40. Nf1 {[%emt 0:05:57]} Bxh4 {[%emt 0:07:30]} (40... Bxc1 $14 {deserves consideration.} 41. Rxc1 Qa4) 41. gxh4 $16 {[%emt 0:00:30]} Nh8 {[%emt 0:00:30]} ({Of course not} 41... Rg8 $6 42. Ng3 $14) 42. Qe3 {[%emt 0:00:30] Strongly threatening Qh6+.} Nf7 {[%emt 0:00:30] Inhibits Qh6+.} 43. Ng3 {[%emt 0:00:30]} Rg8 {[%emt 0:00:30]} 44. Qe2 {[%emt 0:00:30]} Qe8 {[%emt 0:00:30]} 45. f4 {[%emt 0:00:30]} (45. Rg1 $16) 45... Ng4 {[%emt 0:00:30]} (45... exf4 $11 {keeps the balance.} 46. Nxh5 Ng5+ $1 47. hxg5 Nxh5) 46. f5 {[%emt 0:00:03]} Nfh6 {[%emt 0:01:30]} 47. Rf1 {[%emt 0:01:34]} exf5 {[%emt 0:00:30]} 48. exf5 {[%emt 0:00:47]} Nf6 {[%emt 0:00:30]} 49. Bg5 $1 {[%emt 0:00:48]} ({And not} 49. Bxh6 Kxh6 50. Rg1 Nd5 $11) 49... Nhg4 {[%emt 0:00:30] [#]} 50. Ne4 $4 {[%emt 0:00:12][%mdl 8192]} (50. Rd1 $1 $18) 50... Nxe4 $19 {[%emt 0:02:30]} 51. Qxe4 {[%emt 0:00:01] [#]} Qa8 $2 {[%emt 0:00:00]} ({Black should try} 51... Qb5 $1 $19 {[%cal Rb5f1]} 52. f6+ Kh8) 52. Qxa8 {[%emt 0:00:31] The position is equal.} Rxa8 {[%emt 0:00:00]} 53. Kg3 {[%emt 0:00:10]} Rf8 {[%emt 0:00:30]} 54. a4 {[%emt 0:00:55][%cal Ba2a4,Ba4a5][%mdl 32]} Rf7 {[%emt 0:00:30]} 55. a5 {[%emt 0:00:44] Weighted Error Value: White=0.32/Black=0.32} 1/2-1/2

[Event "Marmaris Karya-19 GM-May 2022"]
[Site "Icmeler-Marmaris"]
[Date "2022.05.15"]
[Round "2.2"]
[White "Toufighi, Homayoon"]
[Black "Gunduz, Umut Erdem"]
[Result "1/2-1/2"]
[ECO "D37"]
[WhiteElo "2439"]
[BlackElo "2316"]
[Annotator "TA"]
[PlyCount "119"]
[EventDate "2022.05.15"]
[EventType "schev"]
[EventCountry "TUR"]
[SourceTitle "playchess.com"]
[Source "ChessBase"]
[SourceQuality "1"]
[TimeControl "5400+30"]

{[%evp 14,119,12,12,15,16,9,15,23,10,12,16,28,11,9,6,7,4,21,21,29,38,32,37,25,0,51,52,47,0,35,0,46,50,52,53,64,0,0,0,0,0,0,0,0,0,0,0,126,119,119,116,105,116,91,0,0,0,0,-67,0,0,0,0,0,0,0,0,108,101,93,93,64,31,14,0,0,0,0,0,0,-16,0,0,0,0,0,0,0,0,0,0,0,0,0,0,0,0,0,0,0,0,0,0,8,8,8,8]} 1. d4 {[%emt 0:10:00]} Nf6 {[%emt 0:03:00]} 2. Nf3 {[%emt 0:00:00]} d5 {[%emt 0:04:30]} 3. c4 {[%emt 0:00:00]} e6 {[%emt 0:01:30]} 4. Nc3 {[%emt 0:00:30]} Be7 {[%emt 0:00:30]} 5. Bf4 {[%emt 0:00:30]} O-O {[%emt 0:00:00]} 6. c5 {[%emt 0:03:30]} c6 {[%emt 0:01:00]} 7. e3 {[%emt 0:04:30]} Nbd7 {[%emt 0:01:30]} 8. h3 {[%emt 0:00:30]} b6 {[%emt 0:00:30] D37: Queen's Gambit Declined: 5 Bf4.} 9. b4 {[%emt 0:00:00]} a5 {[%emt 0:00:30]} 10. a3 {[%emt 0:01:00]} Bb7 {[%emt 0:01:30] 10...h6 gains popularity.} 11. Bd3 {[%emt 0:01:30] Inhibits Ne4.} Qc8 {[%emt 0:00:30]} 12. O-O {[%emt 0:03:30]} Ba6 {[%emt 0:00:00]} 13. Qe2 {[%emt 0:09:30]} Bxd3 {[%emt 0:02:00]} 14. Qxd3 {[%emt 0:00:00]} Qb7 {[%emt 0:10:30]} 15. Rfb1 {[%emt 0:05:00]} axb4 {[%emt 0:05:30]} 16. axb4 {[%emt 0:00:00]} Rxa1 {[%emt 0:00:30]} 17. Rxa1 {[%emt 0:00:00] aiming for Qa6.} Ra8 {[%emt 0:00:30] Against Qa6} 18. Qb1 {[%emt 0:00:30]} Ra7 {[%emt 0:01:30] [#]} 19. Ne1 $146 {[%emt 0:05:30]} ({Predecessor:} 19. Nd2 Bd8 20. Rxa7 Qxa7 21. Qa2 Qb7 22. Nb3 bxc5 23. bxc5 Qb4 24. Qa8 Qxb3 25. Qxd8+ Nf8 26. Bd6 {½-½ (49) Korotylev,A (2620)-Rychagov,A (2571) Moscow 2007}) 19... Qa8 {[%emt 0:03:30]} (19... Rxa1 $11 20. Qxa1 bxc5 21. bxc5 e5) 20. Rxa7 $14 {[%emt 0:00:30]} Qxa7 {[%emt 0:00:30]} 21. Nc2 {[%emt 0:05:30] Prevents Qa3.} (21. Qa2 $14 {deserves consideration.} Qb7 22. Nd3) 21... g6 {[%emt 0:27:30]} 22. g4 {[%emt 0:06:30][%cal Bg2g4,Bg4g5][%mdl 32]} bxc5 {[%emt 0:15:35]} (22... Qb7 $11 {is more appropriate.}) 23. bxc5 {[%emt 0:03:30]} h5 {[%emt 0:00:08]} 24. g5 {[%emt 0:01:30]} Nh7 {[%emt 0:00:41]} 25. h4 {[%emt 0:00:00]} (25. Nb4 $14 Qb7 26. Nd3 (26. h4 e5 $14) 26... Qxb1+ 27. Nxb1) 25... e5 $1 $11 {[%emt 0:00:09]} 26. Bg3 {[%emt 0:01:00]} Nhf8 {[%emt 0:00:43]} 27. Na2 {[%emt 0:05:30]} exd4 {[%emt 0:01:30]} 28. exd4 {[%emt 0:00:30]} Ne6 {[%emt 0:00:06]} 29. Nab4 {[%emt 0:01:30]} Qb7 {[%emt 0:04:56]} 30. Qa1 {[%emt 0:00:30]} f5 {[%emt 0:04:09]} (30... Bf8 $11 {remains equal.}) 31. Qa4 {[%emt 0:03:30]} f4 {[%emt 0:01:05]} 32. Bh2 {[%emt 0:04:30]} ({Stronger than} 32. Nxc6 Bxc5 33. dxc5 fxg3 $17) 32... Nb8 {[%emt 0:00:30] [#]} 33. Nd3 $1 {[%emt 0:00:30]} Qb1+ {[%emt 0:00:42]} 34. Nde1 {[%emt 0:09:48]} (34. Nce1 $16) 34... Bf8 {[%emt 0:04:04]} 35. Kg2 {[%emt 0:01:53]} Bg7 {[%emt 0:00:46]} 36. Nf3 {[%emt 0:01:50]} (36. Qa7 $11) 36... Kh7 {[%emt 0:00:15]} ({Better is} 36... Qd1 $1 $15) 37. Nce1 {[%emt 0:03:16] Strongly threatening Qa7.} Qb7 {[%emt 0:05:49] Inhibits Qa7.} 38. Nd3 {[%emt 0:01:37]} Qf7 {[%emt 0:00:24]} 39. Qa8 {[%emt 0:00:44]} Qf5 $1 {[%emt 0:00:29]} 40. Nde1 $1 {[%emt 0:01:18]} ({Much weaker is} 40. Nde5 {[#]} Nd7 $1 {[%mdl 512]} 41. Nxd7 Qg4+ 42. Bg3 fxg3 43. fxg3 Qe4 $17) 40... Qf8 {[%emt 0:00:43]} (40... Nd7 $11) 41. Qb7 $16 {[%emt 0:00:27]} Qd8 {[%emt 0:00:44]} 42. Nd3 {[%emt 0:00:12]} Qf8 {[%emt 0:00:26]} 43. Nde5 {[%emt 0:00:32] White is more active.} Qe8 {[%emt 0:00:18]} 44. Kf1 {[%emt 0:03:02] The position is equal.} Nxd4 $1 {[%emt 0:00:42]} 45. Bxf4 {[%emt 0:00:15]} Ne6 {[%emt 0:00:31][%cal Bd4e6,Be6c5,Bc5e4][%mdl 32]} 46. Bh2 {[%emt 0:03:38] Black must now prevent Nd3.} Nxc5 {[%emt 0:00:06]} 47. Qa8 {[%emt 0:00:29]} Qf8 {[%emt 0:00:46]} 48. Kg2 {[%emt 0:00:09]} Ne4 {[%emt 0:00:40]} 49. Nd3 {[%emt 0:02:43]} Nd7 {[%emt 0:00:32]} 50. Qxc6 {[%emt 0:00:08]} Qf5 {[%emt 0:00:16]} 51. Qc7 {[%emt 0:00:54]} Qg4+ {[%emt 0:00:39]} 52. Bg3 {[%emt 0:00:06]} Nxg3 {[%emt 0:00:18]} 53. fxg3 {[%emt 0:00:36]} Qc4 {[%emt 0:00:39]} 54. Qxd7 {[%emt 0:00:38]} Qxd3 $11 {[%emt 0:00:02][%mdl 4096] Endgame KQB-KQN} 55. g4 {[%emt 0:00:04]} Qe2+ {[%emt 0:00:55]} 56. Kg3 {[%emt 0:00:11] gxh5 is the strong threat.} hxg4 {[%emt 0:00:16]} 57. Qxg4 {[%emt 0:01:34]} d4 {[%emt 0:00:52]} 58. h5 {[%emt 0:00:43] Threatens to win with hxg6+.} gxh5 {[%emt 0:00:30]} 59. Qxh5+ {[%emt 0:00:46]} Kg8 {[%emt 0:00:02]} 60. Qg4 {[%emt 0:00:39] Weighted Error Value: White=0.10 (very precise) /Black=0.13 (very precise)} 1/2-1/2

[Event "Marmaris Karya-19 GM-May 2022"]
[Site "Icmeler-Marmaris"]
[Date "2022.05.15"]
[Round "2.3"]
[White "Maghalashvili, Davit"]
[Black "Ozsakallioglu, Okan"]
[Result "1/2-1/2"]
[ECO "D02"]
[WhiteElo "2456"]
[BlackElo "2312"]
[Annotator "TA"]
[PlyCount "68"]
[EventDate "2022.05.15"]
[EventType "schev"]
[EventCountry "TUR"]
[SourceTitle "playchess.com"]
[Source "ChessBase"]
[SourceQuality "1"]
[TimeControl "5400+30"]

{[%evp 9,68,15,25,0,12,18,10,16,23,17,19,13,12,12,12,12,12,12,13,0,15,7,13,12,28,22,40,34,54,34,36,27,27,27,25,0,18,-33,-51,-77,0,0,0,0,0,0,0,0,0,0,0,0,0,0,0,0,0,0,0,-8,0]} 1. Nf3 {[%emt 0:10:00]} d5 {[%emt 0:01:00]} 2. g3 {[%emt 0:00:30]} Nf6 {[%emt 0:00:00]} 3. Bg2 {[%emt 0:00:30]} c6 {[%emt 0:00:00]} 4. O-O {[%emt 0:00:00]} Bg4 {[%emt 0:00:30]} 5. d4 {[%emt 0:01:00]} Nbd7 {[%emt 0:01:30]} 6. h3 {[%emt 0:00:30] D02: 1 d4 d5 2 Nf3 sidelines, including 2...Nf6 3 g3 and 2...Nf6 3 Bf4.} Bh5 {[%emt 0:00:30]} 7. c4 {[%emt 0:00:30]} e6 {[%emt 0:00:30]} 8. cxd5 {[%emt 0:00:30]} exd5 {[%emt 0:00:30]} 9. Qb3 {[%emt 0:00:00] 9.Ne5 is the fancy move.} Qb6 {[%emt 0:00:00]} 10. Qe3+ {[%emt 0:00:00]} Be7 $1 {[%emt 0:00:00]} 11. Nh4 {[%emt 0:00:30] [#] And now Nf5 would win.} Bg6 {[%emt 0:00:30] Inhibits Nf5.} 12. Nc3 {[%emt 0:00:30]} Qd8 {[%emt 0:04:30]} 13. Nxg6 {[%emt 0:01:30]} hxg6 {[%emt 0:00:30]} 14. b4 {[%emt 0:00:30]} a6 {[%emt 0:06:30] Inhibits b5.} 15. Rb1 {[%emt 0:00:00]} O-O {[%emt 0:00:30]} 16. a4 {[%emt 0:01:00]} Nb6 {[%emt 0:07:30]} 17. Qd3 {[%emt 0:00:30]} a5 {[%emt 0:00:30]} 18. b5 {[%emt 0:03:30] [#]} Re8 $146 {[%emt 0:10:30]} ({Predecessor:} 18... Bb4 19. Na2 Bd6 20. Bg5 Qc7 21. Rfc1 Rad8 22. bxc6 bxc6 23. Qc3 Nc4 24. e4 Be7 25. Bxf6 Bxf6 {0-1 (57) Praggnanandhaa,R (2530)-Karjakin,S (2753) Kolkata 2018}) 19. bxc6 {[%emt 0:01:30]} bxc6 {[%emt 0:00:00]} 20. Bf4 {[%emt 0:01:30]} Bb4 {[%emt 0:03:00]} 21. Na2 {[%emt 0:10:30]} Qe7 {[%emt 0:00:30]} 22. Bf3 {[%emt 0:03:30]} Ne4 {[%emt 0:11:30]} ({Don't do} 22... Nxa4 23. Rfc1 $16) 23. Qc2 {[%emt 0:20:30]} ({White should try} 23. h4 $11) 23... g5 $15 {[%emt 0:09:30]} 24. Bc1 {[%emt 0:08:30]} Nc4 {[%emt 0:00:30]} (24... c5 $17) 25. Nxb4 $11 {[%emt 0:03:30] The position is equal.} axb4 {[%emt 0:00:30]} 26. Bxe4 {[%emt 0:00:30]} Qxe4 {[%emt 0:00:30]} 27. Qxe4 {[%emt 0:00:30]} Rxe4 {[%emt 0:00:00]} 28. Rxb4 {[%emt 0:00:30]} Rxe2 29. Bxg5 {[%emt 0:00:30]} Ra2 {[%emt 0:01:30] Against Ra1} 30. Re1 {[%emt 0:02:30]} R2xa4 {[%emt 0:01:30]} 31. Rxa4 {[%emt 0:03:30]} Rxa4 {[%emt 0:00:00]} 32. Re8+ {[%emt 0:00:00]} Kh7 {[%emt 0:00:00]} 33. Re7 {[%emt 0:01:00]} Kg6 {[%emt 0:01:30]} 34. Bf4 {[%emt 0:02:30]} Na3 {[%emt 0:04:30] Weighted Error Value: White=0.08 (flawless) /Black=0.08 (flawless)} 1/2-1/2

[Event "Marmaris Karya-19 GM-May 2022"]
[Site "Icmeler-Marmaris"]
[Date "2022.05.15"]
[Round "2.4"]
[White "Gholami, Aryan"]
[Black "Darban, Morteza"]
[Result "1-0"]
[ECO "A48"]
[WhiteElo "2530"]
[BlackElo "2279"]
[Annotator "TA"]
[PlyCount "77"]
[EventDate "2022.05.15"]
[EventType "schev"]
[EventCountry "TUR"]
[SourceTitle "playchess.com"]
[Source "ChessBase"]
[SourceQuality "1"]
[TimeControl "5400+30"]

{[%evp 17,77,20,34,25,17,31,39,27,70,89,80,65,263,265,242,97,95,80,92,47,47,48,43,46,49,49,51,50,99,100,206,128,135,136,125,127,172,164,153,169,237,231,208,242,243,235,232,231,217,216,528,500,597,595,589,578,578,0,0,0,29996,29997]} 1. Nf3 g6 2. d4 Nf6 3. Bg5 Bg7 4. Nbd2 O-O 5. e4 d6 6. c3 {[%emt 0:04:30]} Qe8 {[%emt 0:22:30]} 7. Bc4 {[%emt 0:02:30]} e5 {[%emt 0:00:30]} 8. O-O {[%emt 0:00:30]} h6 {[%emt 0:01:30]} 9. Bh4 {[%emt 0:00:30]} Nbd7 {[%emt 0:12:30]} 10. Re1 {[%emt 0:00:30] A48: 1 d4 Nf6 2 Nf3 g6: Torre, London and Colle Systems.} Nb6 {[%emt 0:00:30]} 11. Bb3 {[%emt 0:02:30]} Bd7 {[%emt 0:04:30] [#]} 12. c4 $146 {[%emt 0:04:30] White is slightly better.} ({Predecessor:} 12. Nc4 Nxc4 13. Bxc4 Bc6 14. Bd3 Nh5 15. Qb3 b6 16. a4 Kh8 17. dxe5 dxe5 18. Bb5 {½-½ (67) Gormally,D (2415)-Sasikiran,K (2470) Torquay 1998}) 12... exd4 {[%emt 0:03:30]} 13. e5 $1 {[%emt 0:01:30]} dxe5 {[%emt 0:09:30]} 14. Nxe5 {[%emt 0:00:30] c5 is the strong threat.} (14. Rxe5 $6 Be6 $11) 14... Qd8 $2 {[%emt 0:04:30]} (14... g5 $14) 15. c5 $1 $18 {[%emt 0:02:30][%csl LRb6,LRg6]} g5 {[%emt 0:00:00]} 16. Bg3 {[%emt 0:01:30]} (16. cxb6 $18 {and White stays clearly on top.} gxh4 17. bxc7 Qxc7 18. Nxf7) 16... Nbd5 $16 {[%emt 0:04:00]} 17. Ndf3 {[%emt 0:00:30]} c6 {[%emt 0:00:30]} 18. Nxd4 {[%emt 0:00:30]} Re8 {[%emt 0:11:30]} 19. Rc1 {[%emt 0:08:30]} Ng4 {[%emt 0:01:30][%cal Rg4e5]} 20. Ndf3 {[%emt 0:03:30][%cal Bd4f3,Bf3e5,Be5c4,Bc4d6][%mdl 32]} Nxe5 {[%emt 0:03:30]} 21. Nxe5 {[%emt 0:00:30]} Be6 {[%emt 0:00:30]} 22. Nc4 {[%emt 0:00:00]} Qd7 {[%emt 0:01:51]} (22... Nf4 $14) 23. Nd6 {[%emt 0:01:00]} Bg4 {[%emt 0:02:48]} (23... Bxb2 $16 24. Bxd5 cxd5) 24. Qd3 {[%emt 0:01:30]} Rxe1+ {[%emt 0:00:45]} 25. Rxe1 {[%emt 0:00:30]} Be6 {[%emt 0:00:47]} 26. Bc2 {[%emt 0:00:30] 0x0.000a5ab02c5fdp-1022s more active pieces.} Kf8 {[%emt 0:01:41]} 27. Be5 {[%emt 0:03:30]} (27. Qh7 Nf6 28. Qd3 Nd5 $16) 27... Bxe5 {[%emt 0:06:41]} 28. Rxe5 {[%emt 0:00:30] aiming for Qh7.} Qe7 {[%emt 0:01:45] [#]} (28... Qd8 $142 29. Qd4 (29. Nxb7 Qf6 $14) 29... Nc7) 29. Qd4 $1 $18 {[%emt 0:00:30] And now Nf5 would win.} ({Worse is} 29. Qh7 Qf6 30. Qe4 b6 $11) 29... Kg8 {[%emt 0:07:00] [#]} 30. h4 $1 {[%emt 0:05:30]} b6 {[%emt 0:00:01]} 31. Nf5 {[%emt 0:01:30] White threatens Rxe6 and mate.} Qf8 {[%emt 0:00:40]} 32. hxg5 $40 {[%emt 0:00:30][%mdl 128] Black is in trouble.} hxg5 {[%emt 0:00:52]} 33. Qd2 {[%emt 0:06:30]} Bxf5 $2 {[%emt 0:00:37]} (33... Nf4 34. g3 Bxf5) 34. Rxf5 {[%emt 0:00:30]} (34. Bxf5 Qg7 35. Qe2 Nf4 $16) 34... f6 {[%emt 0:00:04]} 35. Rxd5 {[%emt 0:01:30]} ({Less strong is} 35. Bb3 Re8 36. Qc3 (36. Bxd5+ cxd5 37. cxb6 axb6 $16) 36... Qh6 37. Rxf6 Kg7 38. Rxh6+ Nxc3 39. Rxc6 Ne2+ 40. Kf1 Nd4 $18) 35... cxd5 {[%emt 0:00:34]} 36. Qxd5+ {[%emt 0:00:00]} Kh8 {[%emt 0:00:20]} 37. c6 $2 {[%emt 0:01:00]} (37. g3 $18 {Qh1+ would kill now.} Qg8 38. Qh1+ Kg7 39. Qb7+ Kh6 40. c6) 37... Re8 $1 $11 {[%emt 0:00:36] ( -> ...Re1+)} 38. g3 {[%emt 0:01:30] White wants to mate with Qh1+.} Re5 $2 {[%emt 0:00:50][%mdl 8192]} (38... Re1+ $11 39. Kg2 Re7) 39. Qh1+ {[%emt 0:00:30] Weighted Error Value: White=0.25 (precise) /Black=0.65} 1-0

[Event "Marmaris Karya-19 GM-May 2022"]
[Site "Icmeler-Marmaris"]
[Date "2022.05.15"]
[Round "2.5"]
[White "Sevdimaliyev, Urfan"]
[Black "Ozdemir, Serhan Berat"]
[Result "1-0"]
[ECO "B47"]
[WhiteElo "2331"]
[BlackElo "2117"]
[Annotator "TA"]
[PlyCount "53"]
[EventDate "2022.05.15"]
[EventType "schev"]
[EventCountry "TUR"]
[SourceTitle "playchess.com"]
[Source "ChessBase"]
[SourceQuality "1"]
[TimeControl "5400+30"]

{[%evp 14,53,29,19,27,0,0,0,102,107,121,48,61,0,36,0,0,11,33,35,73,65,76,78,74,78,75,83,88,81,101,82,179,179,324,316,547,552,1114,1103,1131,1069]} 1. e4 c5 2. Nc3 {[%emt 0:03:30]} e6 {[%emt 0:06:30]} 3. Nf3 {[%emt 0:01:30]} a6 {[%emt 0:00:30]} 4. g3 {[%emt 0:00:30]} Nc6 {[%emt 0:02:30]} 5. Bg2 {[%emt 0:01:30]} Qc7 {[%emt 0:00:00]} 6. O-O {[%emt 0:02:30]} Nf6 {[%emt 0:01:00]} 7. d4 {[%emt 0:02:30]} cxd4 {[%emt 0:00:00]} 8. Nxd4 {[%emt 0:00:30]} h5 {[%emt 0:01:00] 8...Nxd4 is the modern continuation. B47: Sicilian: Taimanov: 5 Nc3 Qc7 6 f4, 6 g3 and 6 Be2.} 9. Nxc6 {[%emt 0:15:30]} dxc6 {[%emt 0:02:30]} 10. e5 {[%emt 0:07:30]} Nd5 {[%emt 0:17:30]} (10... Qxe5 $11 11. Bf4 Qa5) 11. Ne4 $16 {[%emt 0:03:30]} (11. Nxd5 $6 cxd5 12. h4 Bd7 $11) 11... b5 {[%emt 0:00:00] [#]} 12. c4 $146 {[%emt 0:11:30]} ({White should play} 12. Re1 $16) ({Predecessor:} 12. Re1 Bb7 13. Bg5 c5 14. c4 Nb6 15. b3 Rc8 16. Qd3 Bc6 17. Rad1 Nd7 18. Nd6+ Bxd6 19. exd6 {½-½ (49) Gomez Dieguez,D (2199)-Minko,V (2411) Barcelona 2017}) 12... bxc4 $14 {[%emt 0:01:00]} 13. Qa4 {[%emt 0:01:30]} (13. Qd4 $14) 13... Be7 {[%emt 0:09:30]} 14. Nd6+ {[%emt 0:14:30]} Bxd6 {[%emt 0:03:30]} 15. exd6 {[%emt 0:00:30]} Qd7 {[%emt 0:05:30]} 16. Qxc4 {[%emt 0:01:30]} O-O {[%emt 0:04:30]} 17. Qh4 {[%emt 0:01:30] White is more active.} Qxd6 {[%emt 0:01:30]} 18. Qxh5 {[%emt 0:00:30]} e5 {[%emt 0:00:30]} 19. b3 {[%emt 0:02:30]} ({Of course not} 19. Be4 $6 Nf6 20. Qh4 (20. Rd1 $2 Qb4 $19) 20... Nxe4 21. Qxe4 Be6 $11) 19... f5 {[%emt 0:07:30]} 20. Bb2 {[%emt 0:01:30]} Bd7 {[%emt 0:00:30]} 21. Rad1 {[%emt 0:01:30]} Rae8 {[%emt 0:00:00]} 22. Rfe1 {[%emt 0:04:30]} Re7 {[%emt 0:04:00]} (22... e4 $16) 23. Qe2 $18 {[%emt 0:01:31][%csl LRa6,LRe5]} e4 {[%emt 0:01:30]} (23... Rfe8 {was called for.} 24. Qxa6 Bc8 25. Bxd5+ (25. Rxd5 Qh6 $14) 25... Qxd5 26. Rxd5 Bxa6 27. Rdxe5 Rxe5 28. Bxe5 (28. Rxe5 Rxe5 29. Bxe5 Kf7 $16) 28... Rd8) 24. Qxa6 {[%emt 0:00:30]} f4 $2 {[%emt 0:04:30] [#]} (24... Qc7 {is a better defense.} 25. Ba3 Bc8) 25. Ba3 {[%emt 0:03:03] This bishop pair is nice. White is clearly winning.} Qh6 {[%emt 0:00:30]} 26. Bxe7 {[%emt 0:01:01]} fxg3 {[%emt 0:00:00]} 27. fxg3 {[%emt 0:01:16] Weighted Error Value: White=0.13 (very precise) /Black=0.50} 1-0